[Event "CRO-ch Youth U17 2020"]
[Site "Vinkovci"]
[Date "2020.08.03"]
[Round "8.14"]
[White "Matota, Dominik"]
[Black "Maravic, Ivan"]
[Result "1-0"]
[ECO "C90"]
[WhiteElo "1807"]
[BlackElo "2009"]
[Annotator "ChessBase"]
[PlyCount "63"]
[EventDate "2020.07.28"]
[EventType "swiss"]
[EventCountry "CRO"]
[SourceTitle "playchess.com"]
[Source "ChessBase"]
[SourceQuality "1"]
[TimeControl "5400+30"]

1. e4 {[%emt 0:00:30]} e5 {[%emt 0:01:30]} 2. Nf3 {[%emt 0:00:00]} Nc6 {[%emt 0:01:30]} 3. Bc4 {[%emt 0:00:00]} Be7 {[%emt 0:01:30]} 4. O-O {[%emt 0:00:30]} Nf6 {[%emt 0:01:30]} 5. d3 {[%emt 0:00:00]} O-O {[%emt 0:01:30]} 6. Re1 {[%emt 0:04:00]} d6 {[%emt 0:03:30]} 7. c3 {[%emt 0:01:30]} Na5 {[%emt 0:04:30]} 8. Bb5 {[%emt 0:04:30]} a6 {[%emt 0:03:30]} 9. Ba4 {[%emt 0:00:30]} b5 {[%emt 0:02:30]} 10. Bc2 {[%emt 0:00:30]} c5 {[%emt 0:05:30]} 11. d4 {[%emt 0:05:30]} Qc7 {[%emt 0:04:30]} 12. h3 {[%emt 0:04:30]} cxd4 {[%emt 0:04:30]} 13. cxd4 {[%emt 0:00:30]} Bd7 {[%emt 0:01:30]} 14. Nc3 {[%emt 0:09:30]} Rac8 {[%emt 0:11:30]} 15. Bd3 {[%emt 0:00:30]} Bc6 {[%emt 0:09:30]} 16. dxe5 {[%emt 0:08:30]} dxe5 {[%emt 0:00:00]} 17. Nd5 {[%emt 0:00:30]} Bxd5 {[%emt 0:05:00]} 18. exd5 {[%emt 0:00:30]} Bd6 {[%emt 0:00:30]} 19. Bg5 {[%emt 0:03:30]} Nd7 {[%emt 0:00:30]} 20. Rc1 {[%emt 0:05:30]} Qb7 {[%emt 0:14:30]} 21. Rxc8 {[%emt 0:17:30]} Rxc8 {[%emt 0:01:30]} 22. Nh4 {[%emt 0:00:30]} g6 {[%emt 0:00:30]} 23. Qg4 {[%emt 0:03:30]} h5 {[%emt 0:01:11]} 24. Qf3 {[%emt 0:05:30]} Nf8 {[%emt 0:06:06]} 25. Bf6 {[%emt 0:10:34]} Nd7 {[%emt 0:09:08]} 26. Bxg6 {[%emt 0:03:59]} fxg6 {[%emt 0:00:25]} 27. Nxg6 {[%emt 0:04:42]} Nf8 {[%emt 0:04:49]} 28. Qf5 {[%emt 0:04:44]} Qd7 {[%emt 0:00:30]} 29. Qg5 {[%emt 0:00:12]} Kf7 {[%emt 0:00:36]} 30. Nxe5+ {[%emt 0:00:30]} Bxe5 {[%emt 0:00:35]} 31. Qg7+ {[%emt 0:00:06]} Ke8 {[%emt 0:01:04]} 32. Rxe5+ {[%emt 0:00:30]} 1-0

[Event "CRO-ch Youth U17 2020"]
[Site "Vinkovci"]
[Date "2020.08.03"]
[Round "8.15"]
[White "Mijic, Karlo"]
[Black "Karlusic, Luka"]
[Result "0-1"]
[ECO "B40"]
[WhiteElo "1729"]
[BlackElo "2159"]
[Annotator "ChessBase"]
[PlyCount "104"]
[EventDate "2020.07.28"]
[EventType "swiss"]
[EventCountry "CRO"]
[SourceTitle "playchess.com"]
[Source "ChessBase"]
[SourceQuality "1"]
[TimeControl "5400+30"]

1. e4 {[%emt 0:00:30]} c5 {[%emt 0:00:30]} 2. Nf3 {[%emt 0:00:00]} e6 {[%emt 0:00:00]} 3. b3 {[%emt 0:00:00]} d5 {[%emt 0:02:00]} 4. exd5 {[%emt 0:00:00]} exd5 {[%emt 0:00:30]} 5. Bb5+ {[%emt 0:00:00]} Bd7 {[%emt 0:05:30]} 6. Bxd7+ {[%emt 0:00:00]} Nxd7 {[%emt 0:00:30]} 7. O-O {[%emt 0:00:00]} Be7 {[%emt 0:09:30]} 8. d4 {[%emt 0:00:30]} Bf6 {[%emt 0:02:30]} 9. Re1+ {[%emt 0:04:30]} Ne7 {[%emt 0:00:30]} 10. Bg5 {[%emt 0:00:30]} Bxg5 {[%emt 0:07:30]} 11. Nxg5 {[%emt 0:00:30]} O-O {[%emt 0:03:30]} 12. dxc5 {[%emt 0:04:30]} Nxc5 {[%emt 0:06:30]} 13. Nc3 {[%emt 0:04:30]} Rc8 {[%emt 0:03:30]} 14. Nb5 {[%emt 0:03:30]} Nc6 {[%emt 0:05:30]} 15. Nf3 {[%emt 0:04:30]} Ne6 {[%emt 0:01:30]} 16. Nbd4 {[%emt 0:06:30]} Nexd4 {[%emt 0:01:30]} 17. Nxd4 {[%emt 0:00:30]} Nxd4 {[%emt 0:02:30]} 18. Qxd4 {[%emt 0:00:00]} Rxc2 {[%emt 0:00:30]} 19. Qxa7 {[%emt 0:01:00]} Qf6 {[%emt 0:05:30]} 20. Rad1 {[%emt 0:00:30]} b6 {[%emt 0:02:30]} 21. Rf1 {[%emt 0:01:30]} Qc6 {[%emt 0:06:30]} 22. Qa6 {[%emt 0:03:30]} Rd8 {[%emt 0:02:30]} 23. Rfe1 {[%emt 0:07:30]} h6 {[%emt 0:03:30]} 24. b4 {[%emt 0:02:30]} Ra8 {[%emt 0:02:30]} 25. Qd3 {[%emt 0:00:30]} Raxa2 {[%emt 0:12:46]} 26. Rf1 {[%emt 0:00:00]} Qf6 {[%emt 0:00:30]} 27. Qe3 {[%emt 0:00:00]} Re2 {[%emt 0:00:30]} 28. Qd4 {[%emt 0:00:00]} Qxd4 {[%emt 0:00:30]} 29. Rxd4 {[%emt 0:00:00]} Rab2 {[%emt 0:00:30]} 30. Rxd5 {[%emt 0:00:30]} Rxb4 {[%emt 0:00:30]} 31. Rdd1 {[%emt 0:00:30]} Rbb2 {[%emt 0:00:30]} 32. Rb1 {[%emt 0:00:30]} Kf8 {[%emt 0:00:30]} 33. Rxb2 {[%emt 0:00:30]} Rxb2 {[%emt 0:00:30]} 34. Re1 {[%emt 0:00:30]} b5 {[%emt 0:00:30]} 35. g3 {[%emt 0:00:30]} Rc2 {[%emt 0:00:30]} 36. Rb1 {[%emt 0:00:30]} Rc5 {[%emt 0:00:30]} 37. f4 {[%emt 0:00:30]} Ke7 {[%emt 0:00:30]} 38. Kf2 {[%emt 0:00:30]} Kd6 {[%emt 0:00:30]} 39. g4 {[%emt 0:00:30]} Kd5 {[%emt 0:00:30]} 40. h4 {[%emt 0:00:30]} Rc2+ {[%emt 0:00:30]} 41. Kf3 {[%emt 0:00:30]} Rc3+ {[%emt 0:00:30]} 42. Kf2 {[%emt 0:00:30]} Kc4 {[%emt 0:00:30]} 43. g5 {[%emt 0:00:30]} h5 {[%emt 0:00:30]} 44. f5 {[%emt 0:00:30]} b4 {[%emt 0:00:30]} 45. Re1 {[%emt 0:00:30]} b3 {[%emt 0:00:30]} 46. Re4+ {[%emt 0:00:30]} Kd3 {[%emt 0:00:30]} 47. Re3+ {[%emt 0:00:30]} Kc2 {[%emt 0:00:30]} 48. Re2+ {[%emt 0:00:30]} Kc1 {[%emt 0:00:30]} 49. Re1+ {[%emt 0:00:30]} Kc2 {[%emt 0:00:30]} 50. Re2+ {[%emt 0:00:30]} Kb1 {[%emt 0:00:30]} 51. g6 {[%emt 0:00:30]} fxg6 {[%emt 0:00:30]} 52. fxg6 {[%emt 0:00:30]} b2 {[%emt 0:00:30]} 0-1

[Event "CRO-ch Youth U17 2020"]
[Site "Vinkovci"]
[Date "2020.08.02"]
[Round "8.16"]
[White "Milinkovic, Dominik"]
[Black "Perusko, Niko"]
[Result "1/2-1/2"]
[ECO "B11"]
[WhiteElo "1626"]
[BlackElo "1902"]
[Annotator "ChessBase"]
[PlyCount "95"]
[EventDate "2020.07.28"]
[EventType "swiss"]
[EventCountry "CRO"]
[SourceTitle "playchess.com"]
[Source "ChessBase"]
[SourceQuality "1"]
[TimeControl "5400+30"]

1. e4 {[%emt 0:00:30]} c6 {[%emt 0:00:30]} 2. Nc3 {[%emt 0:00:30]} d5 {[%emt 0:00:00]} 3. Nf3 {[%emt 0:00:00]} dxe4 {[%emt 0:03:00]} 4. Nxe4 {[%emt 0:00:00]} Nf6 {[%emt 0:00:30]} 5. d3 {[%emt 0:05:30]} Qc7 {[%emt 0:01:30]} 6. g3 {[%emt 0:04:30]} Nxe4 {[%emt 0:01:30]} 7. dxe4 {[%emt 0:00:30]} e5 {[%emt 0:00:30]} 8. Bg2 {[%emt 0:02:30]} Bc5 {[%emt 0:02:30]} 9. O-O {[%emt 0:01:30]} O-O {[%emt 0:00:00]} 10. b3 {[%emt 0:01:30]} Bg4 {[%emt 0:03:00]} 11. Bb2 {[%emt 0:01:30]} Nd7 {[%emt 0:00:30]} 12. Qd2 {[%emt 0:00:30]} Rad8 {[%emt 0:03:30]} 13. Qg5 {[%emt 0:01:30]} Bxf3 {[%emt 0:00:30]} 14. Bxf3 {[%emt 0:00:30]} h6 {[%emt 0:05:30]} 15. Qh5 {[%emt 0:02:30]} Bd4 {[%emt 0:04:30]} 16. Bxd4 {[%emt 0:02:30]} exd4 {[%emt 0:00:30]} 17. Bg2 {[%emt 0:01:30]} c5 {[%emt 0:06:30]} 18. f4 {[%emt 0:02:30]} Nf6 {[%emt 0:14:30]} 19. Qe2 {[%emt 0:01:30]} Rfe8 {[%emt 0:00:30]} 20. e5 {[%emt 0:00:30]} Nd5 {[%emt 0:00:00]} 21. Bxd5 {[%emt 0:04:30]} Rxd5 {[%emt 0:00:00]} 22. Qc4 {[%emt 0:01:30]} Qc6 {[%emt 0:02:30]} 23. a4 {[%emt 0:01:30]} a6 {[%emt 0:02:30]} 24. a5 {[%emt 0:02:30]} Red8 {[%emt 0:07:30]} 25. Rad1 {[%emt 0:04:30]} Qb5 {[%emt 0:07:30]} 26. Ra1 {[%emt 0:19:30]} Qd7 {[%emt 0:20:01]} 27. Rad1 {[%emt 0:00:30]} Qg4 {[%emt 0:00:50]} 28. Kg2 {[%emt 0:00:30]} Qf5 {[%emt 0:00:45]} 29. Qd3 {[%emt 0:00:30]} Qe6 {[%emt 0:00:02]} 30. Qd2 {[%emt 0:01:30]} Qc6 {[%emt 0:00:30]} 31. Kg1 {[%emt 0:00:30]} c4 {[%emt 0:00:30]} 32. bxc4 {[%emt 0:00:30]} Qxc4 {[%emt 0:00:30]} 33. Rb1 {[%emt 0:00:30]} R8d7 {[%emt 0:03:06]} 34. Rf3 {[%emt 0:03:30]} Qa2 {[%emt 0:01:49]} 35. Rfb3 {[%emt 0:03:30]} d3 {[%emt 0:00:30]} 36. R3b2 {[%emt 0:03:30]} Qc4 {[%emt 0:00:37]} 37. cxd3 {[%emt 0:01:30]} Rxd3 {[%emt 0:00:48]} 38. Qe1 {[%emt 0:01:30]} Qd4+ {[%emt 0:01:03]} 39. Kh1 {[%emt 0:01:30]} Qd5+ {[%emt 0:00:30]} 40. Kg1 {[%emt 0:00:30]} Rc7 {[%emt 0:06:30]} 41. f5 {[%emt 0:05:06]} Re7 {[%emt 0:00:30]} 42. Re2 {[%emt 0:00:30]} Qc5+ {[%emt 0:00:30]} 43. Kh1 {[%emt 0:00:30]} Qd5+ {[%emt 0:00:30]} 44. Kg1 {[%emt 0:00:30]} Qc5+ {[%emt 0:00:30]} 45. Kh1 {[%emt 0:00:30]} Rc3 {[%emt 0:00:30]} 46. Rd1 {[%emt 0:00:30]} Qc6+ {[%emt 0:00:30]} 47. Kg1 {[%emt 0:00:30]} Qc5+ {[%emt 0:00:30]} 48. Kh1 {[%emt 0:00:30]} 1/2-1/2

[Event "CRO-ch Youth U17 2020"]
[Site "Vinkovci"]
[Date "2020.08.04"]
[Round "9.1"]
[White "Levacic, Matej"]
[Black "Jurakic, Lukas"]
[Result "1-0"]
[ECO "D85"]
[WhiteElo "2040"]
[BlackElo "2023"]
[Annotator "ChessBase"]
[PlyCount "93"]
[EventDate "2020.07.28"]
[EventType "swiss"]
[EventCountry "CRO"]
[SourceTitle "playchess.com"]
[Source "ChessBase"]
[SourceQuality "1"]
[TimeControl "5400+30"]

1. d4 {[%emt 0:00:30]} Nf6 {[%emt 0:00:30]} 2. c4 {[%emt 0:00:00]} g6 {[%emt 0:00:00]} 3. Nc3 {[%emt 0:00:00]} d5 {[%emt 0:00:00]} 4. cxd5 {[%emt 0:00:30]} Nxd5 {[%emt 0:00:30]} 5. e4 {[%emt 0:00:30]} Nxc3 {[%emt 0:00:00]} 6. bxc3 {[%emt 0:00:00]} Bg7 {[%emt 0:00:00]} 7. Be3 {[%emt 0:00:00]} c5 {[%emt 0:00:30]} 8. Rc1 {[%emt 0:00:30]} O-O {[%emt 0:00:30]} 9. Nf3 {[%emt 0:00:30]} Nc6 {[%emt 0:00:30]} 10. d5 {[%emt 0:00:30]} Ne5 {[%emt 0:01:30]} 11. Nxe5 {[%emt 0:02:30]} Bxe5 {[%emt 0:00:30]} 12. Be2 {[%emt 0:02:30]} Qc7 {[%emt 0:05:30]} 13. Qd2 {[%emt 0:04:30]} Rd8 {[%emt 0:03:30]} 14. f4 {[%emt 0:01:30]} Bh8 {[%emt 0:03:30]} 15. c4 {[%emt 0:06:30]} Bd7 {[%emt 0:08:30]} 16. O-O {[%emt 0:01:30]} Be8 {[%emt 0:02:30]} 17. e5 {[%emt 0:08:30]} Rac8 {[%emt 0:06:30]} 18. Bf3 {[%emt 0:13:30]} Qb6 {[%emt 0:11:30]} 19. Qf2 {[%emt 0:03:30]} Qa5 {[%emt 0:07:30]} 20. Qh4 {[%emt 0:03:30]} e6 {[%emt 0:06:30]} 21. d6 {[%emt 0:03:30]} Rd7 {[%emt 0:02:30]} 22. Bg4 {[%emt 0:18:30]} f5 {[%emt 0:04:30]} 23. Be2 {[%emt 0:06:30]} a6 {[%emt 0:03:30]} 24. Rc2 {[%emt 0:01:30]} Bg7 {[%emt 0:02:30]} 25. Rb1 {[%emt 0:02:57]} Bf8 {[%emt 0:02:30]} 26. Rcb2 {[%emt 0:01:56]} Rcd8 {[%emt 0:02:30]} 27. Rxb7 {[%emt 0:02:35]} Qxa2 {[%emt 0:01:30]} 28. R7b2 {[%emt 0:00:41]} Qa5 {[%emt 0:00:30]} 29. Qe1 {[%emt 0:01:12]} Qa4 {[%emt 0:02:30]} 30. Bxc5 {[%emt 0:00:56]} Qc6 {[%emt 0:00:00]} 31. Qf2 {[%emt 0:00:53]} Rc8 {[%emt 0:00:00]} 32. Be3 {[%emt 0:00:22]} g5 {[%emt 0:01:30]} 33. c5 {[%emt 0:02:54]} gxf4 {[%emt 0:01:30]} 34. Qxf4 {[%emt 0:00:23]} Rg7 {[%emt 0:01:30]} 35. Bf3 {[%emt 0:00:24]} Qd7 {[%emt 0:00:00]} 36. c6 {[%emt 0:01:29]} Rxc6 {[%emt 0:01:00]} 37. Rb7 {[%emt 0:03:00]} Qxb7 {[%emt 0:00:55]} 38. Rxb7 {[%emt 0:00:04]} Rxb7 {[%emt 0:00:08]} 39. Bxc6 {[%emt 0:00:18]} Bxc6 {[%emt 0:00:27]} 40. Bd2 {[%emt 0:02:37]} Rg7 {[%emt 0:01:15]} 41. g3 {[%emt 0:00:26]} Rg4 {[%emt 0:01:22]} 42. Qe3 {[%emt 0:01:24]} Bb5 {[%emt 0:03:01]} 43. Qa7 {[%emt 0:01:22]} Rg7 {[%emt 0:01:08]} 44. Qb8 {[%emt 0:00:42]} Kf7 {[%emt 0:01:37]} 45. Bh6 {[%emt 0:00:42]} Rg8 {[%emt 0:00:27]} 46. Qc7+ {[%emt 0:00:17]} Ke8 {[%emt 0:01:46]} 47. Bxf8 {[%emt 0:00:12]} 1-0

[Event "CRO-ch Youth U17 2020"]
[Site "Vinkovci"]
[Date "2020.08.04"]
[Round "9.2"]
[White "Troselj, Ivan"]
[Black "Matota, Dominik"]
[Result "1/2-1/2"]
[ECO "C26"]
[WhiteElo "1857"]
[BlackElo "1807"]
[Annotator "NA"]
[PlyCount "90"]
[EventDate "2020.07.28"]
[EventType "swiss"]
[EventCountry "CRO"]
[SourceTitle "playchess.com"]
[Source "ChessBase"]
[SourceQuality "1"]
[TimeControl "5400+30"]

1. e4 {[%emt 0:00:30]} e5 {[%emt 0:01:30]} 2. Nc3 {[%emt 0:00:00]} Bc5 {[%emt 0:01:30]} 3. g3 {[%emt 0:00:00]} Nc6 {[%emt 0:00:30]} 4. Bg2 {[%emt 0:00:00]} Nf6 {[%emt 0:06:30]} 5. Nge2 {[%emt 0:00:00]} O-O {[%emt 0:01:30]} 6. O-O {[%emt 0:00:30]} a6 {[%emt 0:01:30]} 7. d3 {[%emt 0:00:00]} h6 {[%emt 0:00:30]} 8. h3 {[%emt 0:00:00]} d6 {[%emt 0:00:00]} 9. Kh2 {[%emt 0:00:30]} Bd7 {[%emt 0:02:00]} 10. f4 {[%emt 0:01:30]} Qe7 {[%emt 0:07:30]} 11. f5 {[%emt 0:00:30]} Nd4 {[%emt 0:01:30]} 12. g4 {[%emt 0:04:30]} c6 {[%emt 0:05:30]} 13. Ng3 {[%emt 0:00:30]} Qe8 {[%emt 0:07:30]} 14. h4 {[%emt 0:03:30]} Nh7 {[%emt 0:06:30]} 15. Nh5 {[%emt 0:15:30]} f6 {[%emt 0:03:30]} 16. Be3 {[%emt 0:10:30]} b5 {[%emt 0:03:30]} 17. Qd2 {[%emt 0:02:30]} Qf7 {[%emt 0:22:30]} 18. Nd1 {[%emt 0:04:30]} b4 {[%emt 0:03:30]} 19. Bxd4 {[%emt 0:01:30]} exd4 {[%emt 0:06:59]} 20. Nf4 {[%emt 0:01:30]} Rfd8 {[%emt 0:00:26]} 21. Nf2 {[%emt 0:00:30]} Rab8 {[%emt 0:01:26]} 22. N2h3 {[%emt 0:01:30]} a5 {[%emt 0:01:13]} 23. b3 {[%emt 0:06:30]} a4 {[%emt 0:00:40]} 24. Ng6 {[%emt 0:00:30]} d5 {[%emt 0:08:50]} 25. exd5 {[%emt 0:01:30]} Bd6+ {[%emt 0:00:48]} 26. Nhf4 {[%emt 0:00:30]} Rdc8 {[%emt 0:02:22]} 27. Rae1 {[%emt 0:00:30]} Rb5 {[%emt 0:01:57]} 28. dxc6 {[%emt 0:07:30]} Bxc6 {[%emt 0:00:26]} 29. Re6 {[%emt 0:02:30]} Bxg2 {[%emt 0:00:29]} 30. Kxg2 {[%emt 0:00:30]} Qc7 {[%emt 0:00:51]} 31. Rf2 {[%emt 0:08:30]} axb3 {[%emt 0:00:51]} 32. axb3 {[%emt 0:00:00]} Rc5 {[%emt 0:00:55]} 33. Qxb4 {[%emt 0:04:00]} Nf8 {[%emt 0:00:25]} 34. Qxd4 {[%emt 0:01:30]} Bxf4 {[%emt 0:00:39]} 35. Nxf4 {[%emt 0:00:00]} Nxe6 {[%emt 0:00:05]} 36. fxe6 {[%emt 0:01:00]} Rxc2 {[%emt 0:00:23]} 37. Qe4 {[%emt 0:04:31]} Rxf2+ {[%emt 0:00:41]} 38. Kxf2 {[%emt 0:00:01]} Qc2+ {[%emt 0:00:44]} 39. Kg3 {[%emt 0:00:25]} Qxb3 {[%emt 0:00:35]} 40. Nd5 {[%emt 0:00:32]} Qb8+ {[%emt 0:00:29]} 41. Kf3 {[%emt 0:00:13]} Qd6 {[%emt 0:00:32]} 42. Nxf6+ {[%emt 0:04:13]} gxf6 {[%emt 0:00:09]} 43. Qg6+ {[%emt 0:00:07]} Kh8 {[%emt 0:00:07]} 44. Qxh6+ {[%emt 0:00:11]} Kg8 {[%emt 0:00:07]} 45. Qg6+ {[%emt 0:00:06]} Kh8 {[%emt 0:00:31]} 1/2-1/2

[Event "CRO-ch Youth U17 2020"]
[Site "Vinkovci"]
[Date "2020.08.04"]
[Round "9.3"]
[White "Dabic, Stjepan"]
[Black "Ljubicic, Mario"]
[Result "1-0"]
[ECO "E71"]
[WhiteElo "2120"]
[BlackElo "1966"]
[Annotator "ChessBase"]
[PlyCount "73"]
[EventDate "2020.07.28"]
[EventType "swiss"]
[EventCountry "CRO"]
[SourceTitle "playchess.com"]
[Source "ChessBase"]
[SourceQuality "1"]
[TimeControl "5400+30"]

1. d4 {[%emt 0:00:30]} Nf6 {[%emt 0:00:30]} 2. c4 {[%emt 0:00:00]} g6 {[%emt 0:00:00]} 3. Nc3 {[%emt 0:00:00]} Bg7 {[%emt 0:00:00]} 4. e4 {[%emt 0:00:00]} d6 {[%emt 0:00:00]} 5. h3 {[%emt 0:00:00]} O-O {[%emt 0:00:00]} 6. Be3 {[%emt 0:00:30]} e5 {[%emt 0:00:00]} 7. d5 {[%emt 0:00:30]} Na6 {[%emt 0:00:00]} 8. g4 {[%emt 0:00:30]} Nc5 {[%emt 0:01:30]} 9. f3 {[%emt 0:00:30]} c6 {[%emt 0:00:30]} 10. Nge2 {[%emt 0:02:30]} cxd5 {[%emt 0:01:30]} 11. cxd5 {[%emt 0:00:30]} h5 {[%emt 0:04:30]} 12. Qd2 {[%emt 0:01:30]} Nh7 {[%emt 0:11:30]} 13. O-O-O {[%emt 0:01:30]} h4 {[%emt 0:01:30]} 14. Kb1 {[%emt 0:04:30]} Bf6 {[%emt 0:02:30]} 15. Bg2 {[%emt 0:14:30]} Bg5 {[%emt 0:06:30]} 16. f4 {[%emt 0:00:30]} exf4 {[%emt 0:00:30]} 17. Nxf4 {[%emt 0:00:30]} Re8 {[%emt 0:07:30]} 18. Rhf1 {[%emt 0:03:30]} b6 {[%emt 0:07:30]} 19. Qf2 {[%emt 0:23:30]} Qe7 {[%emt 0:04:30]} 20. Bd4 {[%emt 0:07:30]} Ba6 {[%emt 0:02:30]} 21. Rfe1 {[%emt 0:01:30]} Bxf4 {[%emt 0:23:30]} 22. Qxf4 {[%emt 0:00:00]} Nd3 {[%emt 0:00:30]} 23. Qh6 {[%emt 0:00:00]} Qf8 {[%emt 0:04:30]} 24. Qxh4 {[%emt 0:00:30]} g5 {[%emt 0:00:52]} 25. Qg3 {[%emt 0:00:30]} Nxe1 {[%emt 0:01:13]} 26. Rxe1 {[%emt 0:00:30]} Qh6 {[%emt 0:01:10]} 27. Bf1 {[%emt 0:01:30]} Bxf1 {[%emt 0:02:00]} 28. Rxf1 {[%emt 0:00:30]} b5 {[%emt 0:03:06]} 29. Qd3 {[%emt 0:05:30]} a6 {[%emt 0:04:18]} 30. Ne2 {[%emt 0:04:30]} Rad8 {[%emt 0:09:28]} 31. Ng3 {[%emt 0:01:30]} Qxh3 {[%emt 0:01:17]} 32. Rh1 {[%emt 0:00:30]} Qxg4 {[%emt 0:00:28]} 33. e5 {[%emt 0:00:00]} f5 {[%emt 0:00:30]} 34. Nxf5 {[%emt 0:00:00]} Qf4 {[%emt 0:00:35]} 35. e6 {[%emt 0:00:30]} Rc8 {[%emt 0:00:32]} 36. Nh6+ {[%emt 0:00:30]} Kf8 {[%emt 0:00:15]} 37. Rf1 {[%emt 0:00:30]} 1-0

[Event "CRO-ch Youth U17 2020"]
[Site "Vinkovci"]
[Date "2020.08.04"]
[Round "9.4"]
[White "Kovac, Petar"]
[Black "Mahecic, Lovre"]
[Result "1-0"]
[ECO "A52"]
[WhiteElo "1949"]
[BlackElo "1949"]
[Annotator "ChessBase"]
[PlyCount "47"]
[EventDate "2020.07.28"]
[EventType "swiss"]
[EventCountry "CRO"]
[SourceTitle "playchess.com"]
[Source "ChessBase"]
[SourceQuality "1"]
[TimeControl "5400+30"]

1. d4 {[%emt 0:00:30]} Nf6 {[%emt 0:00:30]} 2. c4 {[%emt 0:00:00]} e5 {[%emt 0:00:00]} 3. dxe5 {[%emt 0:00:00]} Ng4 {[%emt 0:00:00]} 4. Nf3 {[%emt 0:00:00]} Bc5 {[%emt 0:00:00]} 5. e3 {[%emt 0:00:00]} Nc6 {[%emt 0:00:00]} 6. Be2 {[%emt 0:00:00]} Ngxe5 {[%emt 0:00:30]} 7. Nfd2 {[%emt 0:01:00]} d6 {[%emt 0:00:30]} 8. O-O {[%emt 0:00:30]} O-O {[%emt 0:00:30]} 9. Nc3 {[%emt 0:01:30]} Bf5 {[%emt 0:00:30]} 10. Nde4 {[%emt 0:00:30]} Bb6 {[%emt 0:00:30]} 11. Ng3 {[%emt 0:00:30]} Bg6 {[%emt 0:00:30]} 12. f4 {[%emt 0:00:30]} Nb4 {[%emt 0:08:30]} 13. f5 {[%emt 0:06:30]} Qg5 {[%emt 0:05:30]} 14. a3 {[%emt 0:09:30]} Bxe3+ {[%emt 0:03:30]} 15. Kh1 {[%emt 0:00:00]} Nbd3 {[%emt 0:17:30]} 16. Bxd3 {[%emt 0:09:00]} Ng4 {[%emt 0:00:00]} 17. h3 {[%emt 0:01:30]} Ne5 {[%emt 0:07:00]} 18. Nce4 {[%emt 0:02:30]} Qh6 {[%emt 0:00:30]} 19. fxg6 {[%emt 0:02:30]} fxg6 {[%emt 0:00:30]} 20. Be2 {[%emt 0:02:30]} Rxf1+ {[%emt 0:01:30]} 21. Nxf1 {[%emt 0:00:00]} Bxc1 {[%emt 0:00:30]} 22. Qxc1 {[%emt 0:00:00]} Qh4 {[%emt 0:00:00]} 23. Nfg3 {[%emt 0:00:30]} Re8 {[%emt 0:01:00]} 24. Qg5 {[%emt 0:00:30]} 1-0

[Event "CRO-ch Youth U17 2020"]
[Site "Vinkovci"]
[Date "2020.08.04"]
[Round "9.5"]
[White "Karlusic, Luka"]
[Black "Vucenovic, Damian"]
[Result "0-1"]
[ECO "D36"]
[WhiteElo "2169"]
[BlackElo "1959"]
[Annotator "ChessBase"]
[PlyCount "102"]
[EventDate "2020.07.28"]
[EventType "swiss"]
[EventCountry "CRO"]
[SourceTitle "playchess.com"]
[Source "ChessBase"]
[SourceQuality "1"]
[TimeControl "5400+30"]

1. d4 {[%emt 0:00:30]} d5 {[%emt 0:00:30]} 2. c4 {[%emt 0:00:00]} e6 {[%emt 0:00:30]} 3. Nc3 {[%emt 0:00:00]} Nf6 {[%emt 0:00:30]} 4. cxd5 {[%emt 0:00:00]} exd5 {[%emt 0:01:30]} 5. Bg5 {[%emt 0:00:00]} Be7 {[%emt 0:00:30]} 6. e3 {[%emt 0:00:00]} c6 {[%emt 0:01:30]} 7. Qc2 {[%emt 0:00:00]} O-O {[%emt 0:01:30]} 8. Bd3 {[%emt 0:00:30]} Nbd7 {[%emt 0:01:30]} 9. Nge2 {[%emt 0:00:00]} Re8 {[%emt 0:01:30]} 10. O-O {[%emt 0:00:00]} Ne4 {[%emt 0:03:30]} 11. Bf4 {[%emt 0:06:30]} Nxc3 {[%emt 0:08:30]} 12. Nxc3 {[%emt 0:00:30]} Nf6 {[%emt 0:00:30]} 13. Rab1 {[%emt 0:06:30]} Bd6 {[%emt 0:04:30]} 14. Bxd6 {[%emt 0:01:30]} Qxd6 {[%emt 0:01:30]} 15. h3 {[%emt 0:00:30]} Kh8 {[%emt 0:08:30]} 16. b4 {[%emt 0:07:30]} Bd7 {[%emt 0:06:30]} 17. Na4 {[%emt 0:03:30]} b6 {[%emt 0:04:30]} 18. Rfc1 {[%emt 0:07:30]} Ne4 {[%emt 0:04:30]} 19. Nc3 {[%emt 0:07:30]} Nxc3 {[%emt 0:08:30]} 20. Qxc3 {[%emt 0:00:00]} Re6 {[%emt 0:02:30]} 21. Bf5 {[%emt 0:04:00]} Rf6 {[%emt 0:01:30]} 22. Bxd7 {[%emt 0:00:30]} Qxd7 {[%emt 0:00:00]} 23. Rb2 {[%emt 0:07:30]} Re8 {[%emt 0:02:00]} 24. Rbc2 {[%emt 0:01:30]} Rg6 {[%emt 0:02:30]} 25. Kh1 {[%emt 0:05:30]} Re4 {[%emt 0:03:30]} 26. b5 {[%emt 0:14:30]} Rh4 {[%emt 0:07:30]} 27. e4 {[%emt 0:01:30]} Rxe4 {[%emt 0:01:30]} 28. bxc6 {[%emt 0:06:30]} Qc7 {[%emt 0:00:30]} 29. Qb4 {[%emt 0:08:59]} h6 {[%emt 0:02:30]} 30. f3 {[%emt 0:01:42]} Re3 {[%emt 0:00:48]} 31. Qb5 {[%emt 0:03:18]} Rge6 {[%emt 0:02:39]} 32. Kg1 {[%emt 0:01:54]} a6 {[%emt 0:08:18]} 33. Qxa6 {[%emt 0:01:30]} Kh7 {[%emt 0:00:42]} 34. Kf2 {[%emt 0:02:00]} Qf4 {[%emt 0:01:11]} 35. c7 {[%emt 0:01:32]} Qxd4 {[%emt 0:02:44]} 36. Kf1 {[%emt 0:01:01]} Qb4 {[%emt 0:05:34]} 37. Kg1 {[%emt 0:01:22]} Re1+ {[%emt 0:00:33]} 38. Rxe1 {[%emt 0:00:22]} Rxe1+ {[%emt 0:00:25]} 39. Kf2 {[%emt 0:00:32]} Re8 {[%emt 0:01:03]} 40. Kg1 {[%emt 0:01:10]} Re1+ {[%emt 0:00:21]} 41. Kh2 {[%emt 0:00:33]} Qf4+ {[%emt 0:00:47]} 42. g3 {[%emt 0:00:00]} Qe3 {[%emt 0:00:35]} 43. Rg2 {[%emt 0:00:52]} Qc1 {[%emt 0:00:11]} 44. Qd3+ {[%emt 0:00:32]} g6 {[%emt 0:00:13]} 45. g4 {[%emt 0:00:35]} Qxc7+ {[%emt 0:00:44]} 46. Rg3 {[%emt 0:00:01]} Qc1 {[%emt 0:00:36]} 47. Rg2 {[%emt 0:00:36]} Qf4+ {[%emt 0:00:17]} 48. Rg3 {[%emt 0:00:02]} d4 {[%emt 0:00:35]} 49. Kg2 {[%emt 0:00:48]} Qc1 {[%emt 0:00:45]} 50. f4 {[%emt 0:00:30]} Qb2+ {[%emt 0:00:42]} 51. Kf3 {[%emt 0:00:11]} Re3+ {[%emt 0:00:04]} 0-1

[Event "CRO-ch Youth U17 2020"]
[Site "Vinkovci"]
[Date "2020.08.04"]
[Round "9.6"]
[White "Biljesko, Marija"]
[Black "Dejanovic, Tereza"]
[Result "1/2-1/2"]
[ECO "D37"]
[WhiteElo "1250"]
[BlackElo "1788"]
[Annotator "NA"]
[PlyCount "20"]
[EventDate "2020.07.28"]
[EventType "swiss"]
[EventCountry "CRO"]
[SourceTitle "playchess.com"]
[Source "ChessBase"]
[SourceQuality "1"]
[TimeControl "5400+30"]

1. d4 {[%emt 0:00:30]} d5 {[%emt 0:00:30]} 2. c4 {[%emt 0:00:00]} e6 {[%emt 0:00:00]} 3. Nc3 {[%emt 0:00:00]} Nf6 {[%emt 0:00:00]} 4. Bf4 {[%emt 0:00:00]} Be7 {[%emt 0:01:30]} 5. e3 {[%emt 0:00:00]} O-O {[%emt 0:00:30]} 6. Nf3 {[%emt 0:01:30]} b6 {[%emt 0:00:00]} 7. Be2 {[%emt 0:01:30]} Bb7 {[%emt 0:00:00]} 8. O-O {[%emt 0:01:30]} Nbd7 {[%emt 0:01:30]} 9. cxd5 {[%emt 0:08:30]} exd5 {[%emt 0:00:30]} 10. Ne5 {[%emt 0:07:30]} c6 {[%emt 0:08:30]} 1/2-1/2